fUSD/lending_fUSD_20241125
["ID","MTS","AMOUNT","RATE_DAILY","PERIOD"]
[343252346,1732532744027,-154.99474329,0.00041246,21]
[343252347,1732532744095,-500.0,0.00041246,21]
[343252348,1732532744161,-500.0,0.00041246,21]
[343252349,1732532744231,-500.0,0.00041246,21]
[343252350,1732532744294,-500.0,0.00041246,21]
[343252351,1732532744358,-500.0,0.00041246,21]
[343252352,1732532744423,-1826.63,0.00041246,21]
[343252353,1732532744492,-2723.73,0.00041246,21]
[343252354,1732532744556,-500.0,0.00041246,21]
[343252355,1732532744621,-951.95,0.00041246,21]
[343252356,1732532744686,-500.0,0.00041246,21]
[343252357,1732532744748,-870.89,0.00041246,21]
[343252358,1732532744811,-2153.49,0.00041246,21]
[343252359,1732532744873,-500.0,0.00041246,21]
[343252360,1732532744934,-1113.59,0.00041246,21]
[343252361,1732532744998,-659.89,0.00041246,21]
[343252362,1732532745059,-500.0,0.00041246,21]
[343252363,1732532745130,-500.0,0.00041246,21]
[343252364,1732532745205,-234.09359815,0.00041246,21]
[343252365,1732532745271,-2119.8,0.00041246,21]
[343252366,1732532745339,-211.49934703,0.00041246,21]
[343252367,1732532745403,-500.0,0.00041246,21]
[343252368,1732532745466,-500.0,0.00041246,21]
[343252369,1732532745528,-843.63,0.00041246,2]
[343252370,1732532745588,-2388.93,0.00041246,21]
[343252371,1732532745654,-4974.71,0.00041246,21]
[343252372,1732532745718,-285.27691324,0.00041246,21]
[343252373,1732532745784,-500.0,0.00041246,21]
[343252374,1732532745847,-500.0,0.00041246,21]
[343252375,1732532745912,-500.0,0.00041246,21]
[343252376,1732532745978,-500.0,0.00041246,21]
[343252377,1732532746049,-3450.2,0.00041246,21]
[343252378,1732532746117,-954.85,0.00041246,21]
[343252379,1732532746188,-1553.14,0.00041246,21]
[343252380,1732532746262,-500.0,0.00041246,21]
[343252381,1732532746331,-150.45797481,0.00041246,21]
[343252382,1732532746399,-1151.71,0.00041246,21]
[343252383,1732532746467,-500.0,0.00041246,21]
[343252384,1732532746536,-500.0,0.00041246,21]
[343252385,1732532746615,-500.0,0.00041246,21]
[343252386,1732532746696,-571.37,0.00041246,21]
[343252387,1732532746775,-500.0,0.00041246,21]
[343252388,1732532746845,-500.0,0.00041246,21]
[343252389,1732532746907,-500.0,0.00041246,21]
[343252390,1732532746971,-500.0,0.00041246,21]
[343252391,1732532747037,-500.0,0.00041246,21]
[343252392,1732532747101,-500.0,0.00041246,21]
[343252393,1732532747168,-894.49,0.00041246,21]
[343252394,1732532747234,-500.0,0.00041246,21]
[343252395,1732532747304,-3520.87,0.00041246,21]
[343252396,1732532747370,-182.82963564,0.00041246,21]
[343252397,1732532747438,-9353.77,0.00041246,21]
[343252398,1732532747501,-546.5960216,0.00041246,21]
[343252399,1732532747565,-1431.01,0.00041246,21]
[343252400,1732532747628,-500.0,0.00041246,21]
[343252401,1732532747694,-5664.41,0.00041246,21]
[343252402,1732532747765,-500.0,0.00041246,21]
[343252403,1732532747839,-513.80366328,0.00041246,120]
[343252404,1732532747906,-3466.62,0.00041246,21]
[343252405,1732532747969,-510.79359358,0.00041246,21]
[343252406,1732532748036,-511.84551446,0.00041246,21]
[343252407,1732532748104,-18248.58,0.00041246,21]
[343252408,1732532748174,-500.0,0.00041246,21]
[343252409,1732532748248,-500.0,0.00041246,21]
[343252410,1732532748316,-512.9,0.00041246,21]
[343252411,1732532748384,-500.0,0.00041246,21]
[343252412,1732532748447,-500.0,0.00041246,21]
[343252413,1732532748509,-500.0,0.00041246,21]
[343252414,1732532748573,-500.0,0.00041246,21]
[343252415,1732532748638,-1656.57,0.00041246,21]
[343252416,1732532748702,-500.0,0.00041246,21]
[343252417,1732532748954,-505.95,0.00041246,21]
[343252418,1732532749021,-500.0,0.00041246,21]
[343252419,1732532749090,-500.0,0.00041246,21]
[343252420,1732532749156,-250.0,0.00041246,21]
[343252421,1732532749228,-500.0,0.00041246,21]
[343252422,1732532749302,-1259.85,0.00041246,21]
[343252423,1732532749365,-500.0,0.00041246,21]
[343252424,1732532749433,-500.0,0.00041246,21]
[343252425,1732532749501,-500.0,0.00041246,21]
[343252426,1732532749572,-828.92,0.00041246,21]
[343252427,1732532749639,-500.0,0.00041246,21]
[343252428,1732532749702,-447.78021086,0.00041246,21]
[343252429,1732532749764,-500.0,0.00041246,21]
[343252430,1732532749832,-3065.29,0.00041246,21]
[343252431,1732532749896,-316.79,0.00041246,21]
[343252432,1732532749962,-500.0,0.00041246,21]
[343252433,1732532750032,-702.07,0.00041246,21]
[343252434,1732532750104,-500.0,0.00041246,21]
[343252435,1732532750177,-361.95812874,0.00041246,21]
[343252436,1732532750250,-759.78,0.00041246,21]
[343252437,1732532750315,-476.31830155,0.00041246,21]
[343252438,1732532750385,-500.0,0.00041246,21]
[343252439,1732532750450,-3422.22,0.00041246,21]
[343252440,1732532750514,-500.0,0.00041247,21]
[343252441,1732532750581,-930.71,0.00041247,21]
[343252442,1732532750644,-500.0,0.00041247,21]
[343252443,1732532750712,-977.78,0.00041247,21]
[343252444,1732532750775,-151.0,0.00041247,14]
[343252445,1732532750833,-500.0,0.00041247,21]
[343252446,1732532750891,-500.0,0.00041247,21]
[343252447,1732532750953,-1187.33,0.00041247,21]
[343252448,1732532751013,-910.51,0.00041247,21]
[343252449,1732532751075,-824.84,0.00041247,21]
[343252450,1732532751136,-1094.91,0.00041247,21]
[343252451,1732532751199,-151.0,0.00041247,14]
[343252452,1732532751263,-500.0,0.00041247,21]
[343252453,1732532751326,-500.0,0.00041247,21]
[343252454,1732532751386,-922.35,0.00041247,21]
[343252455,1732532751449,-500.0,0.00041247,7]
[343252456,1732532751510,-500.0,0.00041247,21]
[343252457,1732532751572,-880.06,0.00041247,21]
[343252458,1732532751638,-2617.3,0.00041247,2]
[343252459,1732532751701,-500.0,0.00041247,21]
[343252460,1732532751762,-500.0,0.00041247,21]
[343252461,1732532751822,-1017.78,0.00041247,21]
[343252462,1732532751880,-151.0,0.00041247,14]
[343252463,1732532751946,-500.0,0.00041247,21]
[343252464,1732532752009,-151.0,0.00041247,14]
[343252465,1732532752076,-1037.63,0.00041247,21]
[343252466,1732532752144,-166.294794,0.00041247,14]
[343252467,1732532752215,-185.070457,0.00041247,14]
[343252468,1732532752280,-500.0,0.00041247,21]
[343252469,1732532752344,-185.070457,0.00041247,14]
[343252470,1732532752407,-777.53,0.00041247,21]
[343252471,1732532752471,-151.0,0.00041247,14]
[343252472,1732532752533,-1089.67,0.00041247,21]
[343252473,1732532752595,-500.0,0.00041247,21]
[343252474,1732532752656,-551.59,0.00041247,21]
[343252475,1732532752717,-330.97372608,0.00041247,21]
[343252476,1732532752779,-500.0,0.00041247,21]
[343252477,1732532752839,-500.0,0.00041247,21]
[343252478,1732532752901,-833.792001,0.00041247,14]
[343252479,1732532752969,-833.792001,0.00041247,14]
[343252480,1732532753033,-500.0,0.00041247,21]
[343252481,1732532753104,-790.58,0.00041247,21]
[343252482,1732532753173,-4250.59,0.00041247,21]
[343252483,1732532753236,-500.0,0.00041247,21]
[343252484,1732532753304,-500.0,0.00041247,21]
[343252485,1732532753363,-1539.48,0.00041247,21]
[343252486,1732532753424,-961.47,0.00041247,21]
[343252487,1732532753484,-500.0,0.00041247,21]
[343252488,1732532753549,-500.0,0.00041247,21]
[343252489,1732532753612,-1576.46,0.00041247,21]
[343252490,1732532753676,-500.0,0.00041247,21]
[343252491,1732532753738,-500.0,0.00041247,21]
[343252492,1732532753806,-500.0,0.00041247,21]
[343252493,1732532753866,-504.82,0.00041247,21]
[343252494,1732532753927,-542.31,0.00041247,21]
[343252495,1732532753990,-500.0,0.00041247,21]
[343252496,1732532754056,-725.84,0.00041247,21]
[343252497,1732532754123,-500.0,0.00041247,21]
[343252498,1732532754326,-2192.49,0.00041247,21]
[343252499,1732532754387,-1580.0,0.00041247,21]
[343252500,1732532754450,-671.48,0.00041247,21]
[343252501,1732532754512,-633.88,0.00041247,21]
[343252502,1732532754577,-500.0,0.00041247,21]
[343252503,1732532754640,-500.1788179,0.00041247,21]
[343252504,1732532754707,-1292.43,0.00041247,21]
[343252505,1732532754768,-500.0,0.00041247,21]
[343252506,1732532754830,-700.87,0.00041247,21]
[343252507,1732532754899,-713.25,0.00041247,21]
[343252508,1732532754963,-500.0,0.00041247,21]
[343252509,1732532755034,-875.61,0.00041247,21]
[343252510,1732532755100,-5528.84,0.00041247,21]
[343252511,1732532755165,-500.0,0.00041247,21]
[343252512,1732532755233,-1499.87,0.00041247,21]
[343252513,1732532755309,-1922.44,0.00041247,21]
[343252514,1732532755375,-500.0,0.00041247,21]
[343252515,1732532755442,-500.0,0.00041247,21]
[343252516,1732532755509,-600.33,0.00041265,21]
[343252517,1732532755573,-600.33,0.00041265,21]
[343252518,1732532755637,-600.33,0.00041265,21]
[343252519,1732532755706,-600.33,0.00041265,21]
[343252520,1732532755770,-600.55347106,0.00041265,21]
[343252521,1732532755834,-151.0,0.00041266,14]
[343252522,1732532755896,-500.0,0.00041266,21]
[343252523,1732532755958,-500.0,0.00041266,21]
[343252524,1732532756030,-2135.66,0.00041266,21]
[343252525,1732532756094,-500.0,0.00041266,21]
[343252526,1732532756160,-509.86239755,0.00041266,21]
[343252527,1732532756227,-500.0,0.00041266,21]
[343252528,1732532756291,-151.0,0.00041266,14]
[343252529,1732532756363,-500.0,0.00041266,21]
[343252530,1732532756435,-532.38806004,0.00041266,21]
[343252531,1732532756503,-151.0,0.00041266,14]
[343252532,1732532756572,-500.0,0.00041266,21]
[343252533,1732532756637,-500.0,0.00041266,21]
[343252534,1732532756699,-529.9,0.00041266,21]
[343252535,1732532756763,-500.0,0.00041266,21]
[343252536,1732532756824,-807.3,0.00041266,21]
[343252537,1732532756891,-500.0,0.00041266,21]
[343252538,1732532756958,-234.052,0.00041266,7]
[343252539,1732532757023,-234.052,0.00041266,7]
[343252540,1732532757094,-500.0,0.00041266,21]
[343252541,1732532757160,-500.0,0.00041266,21]
[343252542,1732532757228,-500.0,0.00041266,21]
[343252543,1732532757291,-500.0,0.00041266,21]
[343252544,1732532757354,-500.0,0.00041266,21]
[343252545,1732532757417,-500.0,0.00041266,21]
[343252546,1732532757478,-500.0,0.00041266,21]
[343252547,1732532757542,-500.0,0.00041266,21]
[343252548,1732532757603,-500.0,0.00041266,21]
[343252549,1732532757667,-500.0,0.00041266,21]
[343252550,1732532757731,-473.05819526,0.00041266,21]
[343252551,1732532757795,-500.0,0.00041266,21]
[343252552,1732532757860,-757.94,0.00041266,21]
[343252553,1732532757920,-500.0,0.00041266,21]
[343252554,1732532757982,-500.0,0.00041266,21]
[343252555,1732532758050,-500.0,0.00041266,21]
[343252556,1732532758117,-500.0,0.00041266,21]
[343252557,1732532758183,-500.0,0.00041266,21]
[343252558,1732532758245,-500.0,0.00041266,21]
[343252559,1732532758310,-500.0,0.00041266,21]
[343252560,1732532758379,-401.69153721,0.00041266,21]
[343252561,1732532758447,-151.0,0.00041266,14]
[343252562,1732532758514,-526.7975758,0.00041266,21]
[343252563,1732532758592,-500.0,0.00041266,21]
[343252564,1732532758669,-500.0,0.00041266,21]
[343252565,1732532758739,-500.0,0.00041266,21]
[343252566,1732532758807,-500.0,0.00041266,21]
[343252567,1732532758869,-500.0,0.00041266,21]
[343252568,1732532758932,-373.21125142,0.00041266,21]
[343252569,1732532758999,-500.0,0.00041266,21]
[343252570,1732532759062,-500.0,0.00041266,21]
[343252571,1732532759122,-500.0,0.00041266,21]
[343252572,1732532759183,-694.46,0.00041266,21]
[343252573,1732532759244,-500.0,0.00041266,21]
[343252574,1732532759313,-917.86,0.00041266,21]
[343252575,1732532759375,-490.69727636,0.00041266,21]
[343252576,1732532759582,-500.0,0.00041266,21]
[343252577,1732532759642,-151.0,0.00041266,14]
[343252578,1732532759704,-500.0,0.00041266,21]
[343252579,1732532759763,-500.0,0.00041266,21]
[343252580,1732532759823,-151.0,0.00041266,14]
[343252581,1732532759883,-500.0,0.00041266,21]
[343252582,1732532759950,-228.808054,0.00041266,14]
[343252583,1732532760018,-500.0,0.00041266,21]
[343252584,1732532760088,-500.0,0.00041266,21]
[343252585,1732532760166,-500.0,0.00041266,21]
[343252586,1732532760247,-500.0,0.00041266,21]
[343252587,1732532760322,-500.0,0.00041266,21]
[343252588,1732532760392,-152.225277,0.00041266,14]
[343252589,1732532760468,-152.225277,0.00041266,14]
[343252590,1732532760544,-500.0,0.00041266,21]
[343252591,1732532760620,-500.0,0.00041266,21]
[343252592,1732532760704,-500.0,0.00041266,21]
[343252593,1732532760778,-500.0,0.00041266,21]
[343252594,1732532760845,-500.0,0.00041266,21]
[343252595,1732532760911,-500.0,0.00041266,21]
[343252596,1732532760978,-500.0,0.00041266,21]
[343252597,1732532761044,-500.0,0.00041266,21]
[343252598,1732532761113,-151.0,0.00041266,14]
[343252599,1732532761186,-500.0,0.00041266,21]
[343252600,1732532761255,-151.0,0.00041266,14]
[343252601,1732532761323,-509.14461012,0.00041266,21]
[343252602,1732532761391,-517.88067976,0.00041266,21]
[343252603,1732532761455,-500.0,0.00041266,21]
[343252604,1732532761522,-1043.91,0.00041266,21]
[343252605,1732532761585,-500.0,0.00041266,21]
[343252606,1732532761652,-500.0,0.00041266,21]
[343252607,1732532761723,-500.0,0.00041266,21]
[343252608,1732532761789,-500.0,0.00041266,21]
[343252609,1732532761856,-500.0,0.00041266,21]
[343252610,1732532761921,-500.0,0.00041266,21]
[343252611,1732532761982,-500.0,0.00041266,21]
[343252612,1732532762049,-500.0,0.00041266,21]
[343252613,1732532762116,-500.0,0.00041266,21]
[343252614,1732532762187,-500.0,0.00041266,21]
[343252615,1732532762256,-500.0,0.00041266,21]
[343252616,1732532762328,-151.0,0.00041266,14]
[343252617,1732532762390,-500.0,0.00041266,21]
[343252618,1732532762456,-500.0,0.00041266,21]
[343252619,1732532762518,-500.0,0.00041266,21]
[343252620,1732532762584,-500.0,0.00041266,21]
[343252621,1732532762663,-500.0,0.00041266,21]
[343252622,1732532762727,-500.0,0.00041266,21]
[343252623,1732532762791,-500.0,0.00041266,21]
[343252624,1732532762860,-151.0,0.00041266,14]
[343252625,1732532762923,-500.0,0.00041266,21]
[343252626,1732532762982,-500.0,0.00041266,21]
[343252627,1732532763049,-508.98800256,0.00041266,21]
[343252628,1732532763121,-151.0,0.00041266,14]
[343252629,1732532763194,-500.0,0.00041266,21]
[343252630,1732532763273,-489.51584697,0.00041266,21]
[343252631,1732532763341,-500.0,0.00041266,21]
[343252632,1732532763410,-500.0,0.00041266,21]
[343252634,1732532763483,-500.0,0.00041266,21]
[343252635,1732532763549,-409.39539827,0.00041266,21]
[343252636,1732532763618,-151.0,0.00041266,14]
[343252637,1732532763687,-500.0,0.00041266,21]
[343252638,1732532763760,-500.41242718,0.00041266,21]
[343252639,1732532763830,-500.0,0.00041266,21]
[343252640,1732532763901,-500.0,0.00041266,21]
[343252641,1732532763973,-506.80656024,0.00041266,21]
[343252642,1732532764043,-237.74897898,0.00041266,21]
[343252644,1732532764116,-500.0,0.00041266,21]
[343252645,1732532764190,-547.81413767,0.00041266,21]
[343252646,1732532764264,-500.0,0.00041266,21]
[343252647,1732532764332,-500.0,0.00041266,21]
[343252648,1732532764401,-500.0,0.00041266,21]
[343252649,1732532764469,-151.0,0.00041266,14]
[343252650,1732532764540,-258.84511799,0.00041266,21]
[343252651,1732532764606,-500.0,0.00041266,21]
[343252653,1732532764830,-500.0,0.00041266,21]
[343252654,1732532764900,-500.0,0.00041266,21]
[343252655,1732532764968,-500.0,0.00041266,21]
[343252656,1732532765033,-500.0,0.00041266,21]
[343252657,1732532765109,-500.0,0.00041266,21]
[343252659,1732532765186,-500.0,0.00041266,21]
[343252660,1732532765257,-500.0,0.00041266,21]
[343252661,1732532765331,-481.44382128,0.00041266,21]
[343252662,1732532765394,-500.0,0.00041266,21]
[343252663,1732532765457,-500.0,0.00041266,21]
[343252664,1732532765522,-500.0,0.00041266,21]
[343252665,1732532765586,-500.0,0.00041266,21]
[343252666,1732532765650,-500.0,0.00041266,21]
[343252667,1732532765727,-500.0,0.00041266,21]
[343252669,1732532765792,-500.0,0.00041266,21]
[343252670,1732532765856,-496.37152998,0.00041266,21]
[343252671,1732532765923,-500.0,0.00041266,21]
[343252672,1732532765988,-151.0,0.00041266,14]
[343252673,1732532766062,-500.0,0.00041266,21]
[343252674,1732532766132,-500.0,0.00041266,21]
[343252675,1732532766216,-500.0,0.00041266,21]
[343252676,1732532766285,-500.0,0.00041266,21]
[343252678,1732532766355,-596.82314234,0.00041266,21]
[343252679,1732532766422,-500.0,0.00041266,21]
[343252680,1732532766489,-500.0,0.00041266,21]
[343252681,1732532766558,-500.0,0.00041266,21]
[343252682,1732532766624,-500.0,0.00041266,21]
[343252683,1732532766690,-628.74355183,0.00041266,21]
[343252684,1732532766755,-500.0,0.00041266,21]
[343252685,1732532766824,-500.0,0.00041266,21]
[343252686,1732532766890,-500.0,0.00041266,21]
[343252687,1732532766955,-522.55209433,0.00041266,21]
[343252688,1732532767021,-500.0,0.00041266,21]
[343252689,1732532767091,-500.0,0.00041266,21]
[343252690,1732532767164,-500.0,0.00041266,21]
[343252691,1732532767236,-500.0,0.00041266,21]
[343252692,1732532767338,-585.0,0.00041266,21]
[343252694,1732532767438,-500.0,0.00041266,21]
[343252695,1732532767541,-500.0,0.00041266,21]
[343252696,1732532767639,-500.0,0.00041266,21]
[343252697,1732532767736,-500.0,0.00041266,21]
[343252698,1732532767830,-500.0,0.00041266,21]
[343252699,1732532767916,-500.0,0.00041266,21]
[343252700,1732532768008,-500.0,0.00041266,21]
[343252701,1732532768101,-518.92640156,0.00041266,21]
[343252702,1732532768195,-511.46927557,0.00041266,21]
[343252703,1732532768287,-500.0,0.00041266,21]
[343252704,1732532768372,-500.0,0.00041266,21]
[343252706,1732532768468,-500.0,0.00041266,21]
[343252707,1732532768554,-761.85,0.00041266,21]
[343252708,1732532768641,-500.0,0.00041266,21]
[343252709,1732532768733,-928.86,0.00041266,21]
[343252710,1732532768825,-500.0,0.00041266,21]
[343252711,1732532768919,-500.0,0.00041266,21]
[343252713,1732532769027,-500.0,0.00041266,21]
[343252714,1732532769128,-500.0,0.00041266,21]
[343252715,1732532769222,-289.48899984,0.00041266,21]
[343252716,1732532769312,-151.0,0.00041266,14]
[343252717,1732532769403,-500.0,0.00041266,21]
[343252718,1732532769485,-151.0,0.00041266,14]
[343252720,1732532769576,-509.09987179,0.00041266,21]
[343252721,1732532769661,-500.0,0.00041266,21]
[343252722,1732532769744,-507.07548528,0.00041266,21]
[343252723,1732532769826,-506.90060484,0.00041266,21]
[343252724,1732532769905,-509.11658713,0.00041266,21]
[343252725,1732532769994,-185.070457,0.00041266,14]
[343252727,1732532770088,-509.38976814,0.00041266,21]
[343252728,1732532770177,-185.07045,0.00041266,14]
[343252729,1732532770263,-151.0,0.00041266,14]
[343252730,1732532770346,-512.02800169,0.00041266,21]
[343252731,1732532770426,-319.00045062,0.00041266,60]
[343252732,1732532770507,-310.86242239,0.00041266,21]
[343252734,1732532770596,-500.0,0.00041266,21]
[343252735,1732532770846,-299.12328488,0.00041266,21]
[343252736,1732532770908,-500.0,0.00041266,21]
[343252737,1732532770968,-519.2790496,0.00041266,21]
[343252738,1732532771032,-500.0,0.00041266,7]
[343252739,1732532771096,-779.71,0.00041266,21]
[343252740,1732532771162,-833.792001,0.00041266,14]
[343252742,1732532771230,-500.0,0.00041266,21]
[343252743,1732532771296,-833.791996,0.00041266,14]
[343252744,1732532771362,-500.0,0.00041266,21]
[343252745,1732532771425,-500.0,0.00041266,21]
[343252746,1732532771488,-506.81110979,0.00041266,21]
[343252747,1732532771553,-500.0,0.00041266,21]
[343252748,1732532771616,-413.23265757,0.00041266,21]
[343252749,1732532771678,-500.0,0.00041266,21]
[343252750,1732532771740,-500.0,0.00041266,21]
[343252751,1732532771800,-500.0,0.00041266,21]
[343252752,1732532771868,-500.0,0.00041266,21]
[343252753,1732532771929,-510.10852904,0.00041266,21]
[343252754,1732532771989,-508.18063745,0.00041266,21]
[343252755,1732532772051,-500.0,0.00041266,21]
[343252756,1732532772115,-176.84351528,0.00041266,21]
[343252758,1732532772173,-500.0,0.00041266,21]
[343252759,1732532772238,-500.0,0.00041266,21]
[343252760,1732532772302,-500.0,0.00041266,21]
[343252761,1732532772364,-500.0,0.00041266,21]
[343252762,1732532772426,-500.0,0.00041266,21]
[343252763,1732532772485,-500.0,0.00041266,21]
[343252764,1732532772546,-500.0,0.00041266,21]
[343252765,1732532772606,-500.0,0.00041266,2]
[343252766,1732532772666,-500.0,0.00041266,21]
[343252767,1732532772727,-303.0125704,0.00041266,21]
[343252769,1732532772791,-181.6066676,0.00041266,21]
[343252770,1732532772854,-500.0,0.00041266,21]
[343252771,1732532772917,-649.6197844,0.00041266,21]
[343252772,1732532772980,-500.0,0.00041266,21]
[343252773,1732532773044,-500.0,0.00041266,21]
[343252774,1732532773111,-500.0,0.00041266,21]
[343252775,1732532773182,-580.99,0.00041266,21]
[343252776,1732532773251,-500.0,0.00041266,21]
[343252778,1732532773325,-526.05740897,0.00041266,21]
[343252779,1732532773391,-500.0,0.00041266,21]
[343252780,1732532773453,-500.0,0.00041266,21]
[343252781,1732532773521,-500.0,0.00041266,21]
[343252782,1732532773584,-500.0,0.00041266,21]
[343252783,1732532773653,-300.0,0.00041266,21]
[343252784,1732532773718,-500.0,0.00041266,21]
[343252785,1732532773782,-500.0,0.00041266,21]
[343252786,1732532773848,-500.0,0.00041266,21]
[343252788,1732532773913,-500.0,0.00041266,21]
[343252789,1732532773979,-500.0,0.00041266,21]
[343252790,1732532774048,-500.0,0.00041266,21]
[343252791,1732532774112,-500.0,0.00041266,21]
[343252792,1732532774176,-500.0,0.00041266,21]
[343252793,1732532774240,-500.0,0.00041266,21]
[343252794,1732532774300,-500.0,0.00041266,21]
[343252795,1732532774363,-500.0,0.00041266,21]
[343252797,1732532774432,-222.28146993,0.00041266,21]
[343252798,1732532774496,-500.0,0.00041266,21]
[343252799,1732532774562,-500.0,0.00041266,21]
[343252800,1732532774627,-540.02802158,0.00041266,21]
[343252801,1732532774689,-500.0,0.00041266,21]
[343252802,1732532774750,-500.0,0.00041266,21]
[343252803,1732532774811,-500.0,0.00041266,21]
[343252804,1732532774871,-818.46,0.00041266,21]
[343252805,1732532774935,-752.28,0.00041266,21]
[343252807,1732532774995,-151.0,0.00041267,14]
[343252808,1732532775057,-300.462525,0.00041267,14]
[343252809,1732532775122,-151.0,0.00041267,14]
[343252810,1732532775185,-500.0,0.00041267,21]
[343252811,1732532775251,-500.0,0.00041267,21]
[343252812,1732532775317,-500.0,0.00041267,21]
[343252813,1732532775378,-500.0,0.00041267,21]
[343252814,1732532775440,-509.25105354,0.00041267,21]
[343252815,1732532775502,-500.0,0.00041267,21]
[343252817,1732532775564,-586.31457023,0.00041267,21]
[343252818,1732532775627,-500.0,0.00041267,21]
[343252819,1732532775690,-500.0,0.00041267,21]
[343252820,1732532775752,-498.45548666,0.00041267,21]
[343252821,1732532775813,-500.0,0.00041267,21]
[343252822,1732532776025,-500.0,0.00041267,21]
[343252824,1732532776111,-500.0,0.00041267,21]
[343252825,1732532776185,-380.07058639,0.00041267,21]
[343252826,1732532776254,-288.72610358,0.00041267,21]
[343252827,1732532776322,-511.28156691,0.00041267,21]
[343252828,1732532776388,-151.0,0.00041267,14]
[343252829,1732532776456,-151.0,0.00041267,14]
[343252830,1732532776524,-151.0,0.00041267,14]
[343252831,1732532776590,-152.225277,0.00041267,14]
[343252833,1732532776654,-152.225277,0.00041267,14]
[343252834,1732532776720,-151.0,0.00041267,14]
[343252835,1732532776789,-171.964808,0.00041267,14]
[343252836,1732532776855,-500.0,0.00041267,21]
[343252837,1732532776926,-507.36,0.00041267,21]
[343252838,1732532776994,-500.0,0.00041267,21]
[343252839,1732532777064,-500.0,0.00041267,2]
[343252840,1732532777132,-500.0,0.00041267,21]
[343252841,1732532777197,-500.0,0.00041267,21]
[343252842,1732532777262,-151.0,0.00041267,14]
[343252843,1732532777333,-151.0,0.00041267,14]
[343252845,1732532777397,-500.0,0.00041267,21]
[343252846,1732532777464,-151.0,0.00041267,14]
[343252847,1732532777529,-151.0,0.00041267,14]
[343252848,1732532777593,-500.0,0.00041267,21]
[343252849,1732532777663,-500.0,0.00041267,21]
[343252850,1732532777734,-151.0,0.00041267,14]
[343252851,1732532777806,-151.0,0.00041267,14]
[343252852,1732532777872,-500.0,0.00041267,21]
[343252853,1732532777942,-500.0,0.00041267,21]
[343252855,1732532778013,-500.0,0.00041267,21]
[343252856,1732532778093,-649.05325592,0.00041267,21]
[343252857,1732532778169,-500.0,0.00041267,21]
[343252858,1732532778245,-500.0,0.00041267,21]
[343252859,1732532778315,-500.0,0.00041267,21]
[343252860,1732532778389,-536.4,0.00041267,21]
[343252861,1732532778464,-151.0,0.00041267,14]
[343252862,1732532778538,-151.0,0.00041267,14]
[343252864,1732532778612,-500.0,0.00041267,21]
[343252865,1732532778684,-500.0,0.00041267,21]
[343252866,1732532778757,-500.0,0.00041267,21]
[343252867,1732532778834,-500.0,0.00041267,21]
[343252868,1732532778905,-500.0,0.00041267,21]
[343252869,1732532778975,-500.0,0.00041267,21]
[343252870,1732532779046,-500.0,0.00041267,21]